Cogmind - Beta 14 @@@ ROGUE MODE // 2024.11.22 @ 20:11:41 Player: akira Result: Destroyed by G-47 Trooper with Backup Laser I Performance ------------- Evolutions (0) 0 Regions Visited (1) 200 Robots Destroyed (16) 80 Value Destroyed (331) 331 Prototype IDs (0) 0 Alien Tech Used (0) 0 Bonus (0) 0 TOTAL SCORE: 611 Bonus ------- None Cogmind --------- Core Integrity 0/250 Matter 300/300 Energy 100/100 System Corruption 0% Temperature Cool (9) Movement Walking (120) Location -10/Materials Parts ------- > --- POWER (1) -------- (None) > --- PROPULSION (2) --- Aluminum Leg > --- UTILITY (2) ------ Small Storage Unit > --- WEAPON (2) ------- Mining Claw > --- INVENTORY (8) ---- Light Treads Light Treads Compact Wheel Medium Laser Small Laser Particle Gun Grenade Launcher Datajack Peak State ------------ > --- POWER ------------ Light Ion Engine > --- PROPULSION ------- Aluminum Leg Aluminum Leg > --- UTILITY ---------- Small Storage Unit Sensor Array > --- WEAPON ----------- Mining Claw Mining Claw > --- INVENTORY -------- Light Treads Light Treads Aluminum Leg Medium Laser Small Laser Grenade Launcher [Rating: 7] Favorites ----------- Power Light Ion Engine Engine Light Ion Engine Propulsion Aluminum Leg Leg Aluminum Leg Utility Small Storage Unit Device Sensor Array Storage Small Storage Unit Weapon Mining Claw Energy Gun Small Laser Slashing Weapon Mining Claw Build | -11 -10 ------- Run | Yrd Mat Slots Evolved . | . . Power . | . . Propulsion . | . . Utility . | . . Weapon . | . . Parts Attached 14 | 6 8 Power 2 | 1 1 Engine 2 | 1 1 Core . | . . Reactor . | . . Propulsion 5 | 2 3 Treads . | . . Leg 5 | 2 3 Wheel . | . . Hover . | . . Flight . | . . Utility 2 | 1 1 Device 1 | . 1 Storage 1 | 1 . Processor . | . . Hackware . | . . Protection . | . . Artifact . | . . Weapon 5 | 2 3 Energy Gun 3 | 2 1 Energy Cannon . | . . Ballistic Gun . | . . Ballistic Cannon . | . . Launcher . | . . Special Weapon . | . . Impact Weapon . | . . Slashing Weapon 2 | . 2 Piercing Weapon . | . . Special Melee Weapon . | . . Unidentified Prototypes . | . . Parts Lost 8 | . 8 Power 2 | . 2 Propulsion 3 | . 3 Utility 1 | . 1 Weapon 2 | . 2 Highest Loss Streak 3 | . 3 To Critical Strikes . | . . Average Slot Usage (%) 82 | . 82 Engine 10 | . 10 Leg 25 | . 25 Device 4 | . 4 Storage 14 | . 14 Energy Gun 8 | . 8 Slashing Weapon 18 | . 18 Peak Build Rating 7 | 6 7 Average Rating 5 | 3 5 On Entrance 3 | . 6 Naked Turns . | . . Heaviest Build 13 | 11 13 Greatest Support 20 | 20 20 Greatest Overweight (x) 4 | . 4 Average Overweight (x) . | . . Largest Inventory Capacity 8 | 8 8 Average Capacity 7 | 6 8 Most Carried 8 | 5 8 Average Carried 5 | 3 5 Final Capacity 8 | 8 8 Final Carried 8 | 4 8 Class Distribution -------------------- 100% | Mutant Dominant Class ---------------- Mutant | -10/Materials Resources | -11 -10 ----------- Run | Yrd Mat Matter Collected 309 | 178 131 Remotely . | . . Salvage Created 664 | . 664 Parts 38 | . 38 Haulers Intercepted 1 | . 1 Recyclers Shooed . | . . Parts Field Recycled . | . . Retrieved Matter . | . . Parts Self-Destructed . | . . Prevented . | . . Kills | -11 -10 ------- Run | Yrd Mat Combat Hostiles Destroyed 10 | . 10 Melee 5 | . 5 Guns 5 | . 5 Classes Destroyed 6 | . 6 Worker 1 | . 1 Hauler 1 | . 1 Recycler 3 | . 3 Operator 1 | . 1 Swarmer 3 | . 3 Grunt 7 | . 7 Best Kill Streak 5 | . 5 Combat Bots Only 5 | . 5 Max Kills in Single Turn 1 | . 1 Gunslinging . | . . Exploded . | . . Melee 1 | . 1 Uniques/NPCs Destroyed . | . . Combat | -11 -10 -------- Run | Yrd Mat Hostile Shots Fired 101 | . 101 Missed 19 | . 19 Damage Taken 922 | . 922 Core 253 | . 253 Absorbed by Shields . | . . Core Remaining (%) 100 | 100 . Volleys Fired 15 | . 15 Largest 2 | . 2 Hottest 90 | . 90 Shots Fired 25 | . 25 Gun 25 | . 25 Cannon . | . . Launcher . | . . Special . | . . Kinetic . | . . Thermal 20 | . 20 Explosive . | . . Electromagnetic 5 | . 5 Robot Hit Streak 8 | . 8 Robot Miss Streak 2 | . 2 Penetration Max . | . . Secondary Targets 2 | . 2 Max Gunslinging Chain 1 | . 1 Shots Hit Robots 40 | . 40 Core Hits 20 | . 20 Critical Kills . | . . Critical Parts Destroyed . | . . Critical Strikes 1 | . 1 Burn 1 | . 1 Melee Attacks 41 | . 41 Impact . | . . Slashing 41 | . 41 Piercing . | . . Sneak Attacks 7 | . 7 Combat Hostiles . | . . Follow-up Attacks 2 | . 2 Damage Inflicted 908 | . 908 Guns 203 | . 203 Cannons . | . . Explosions . | . . Melee 705 | . 705 Ramming . | . . Kinetic . | . . Thermal 179 | . 179 Explosive . | . . Electromagnetic 24 | . 24 Impact . | . . Slashing 705 | . 705 Piercing . | . . Highest Corruption . | . . Average Corruption . | . . Corruption Purged . | . . Corruption Blocked . | . . Overload Shots . | . . Overflow Damage 60 | . 60 Projectiles . | . . Explosions . | . . Melee 60 | . 60 Knockbacks . | . . Impact . | . . Kinetic . | . . Secondary . | . . Self-Inflicted Damage . | . . Shots . | . . Rammed . | . . Targets Rammed . | . . Kicked . | . . Crushed . | . . Highest Temperature 183 | . 183 Average Temperature 84 | . 84 Received Heat Transfer 489 | . 489 Siege Activations . | . . Robots Corrupted . | . . Combat Hostiles . | . . Parts Fried . | . . Impact Corruptions . | . . Robots Melted . | . . Combat Hostiles . | . . Parts Melted 3 | . 3 Heat Transferred 557 | . 557 Parts Sabotaged . | . . Parts Stolen . | . . Parts Stripped . | . . Power Chain Reactions . | . . Alert | -11 -10 ------- Run | Yrd Mat Peak Influence 197 | . 197 Initial . | . . Average 84 | . 90 Maximum Alert Level . | . . Low Security (%) 100 | 100 100 Level 1 . | . . Level 2 . | . . Level 3 . | . . Level 4 . | . . Level 5 . | . . High Security . | . . Max Security . | . . Squads Dispatched 2 | . 2 Investigation 1 | . 1 Extermination . | . . Reinforcement 1 | . 1 Assault . | . . Garrison . | . . Intercept . | . . Searches Triggered . | . . Construction Impeded . | . . Haulers Reinforced . | . . Active Scanning Responses . | . . Cargo Convoy Interrupts . | . . Stealth | -11 -10 --------- Run | Yrd Mat Distress Signals 1 | . 1 Communications Jammed . | . . Distress Signals . | . . Times Spotted 19 | . 19 Peak Tracking Total 7 | . 7 Tactical Retreats 2 | . 2 Traps | -11 -10 ------- Run | Yrd Mat Traps Triggered 1 | . 1 Indirectly . | . . Trap Hack Attempts . | . . Triggered . | . . Disarmed . | . . Reprogrammed . | . . Reused . | . . Traps Extracted . | . . Installed . | . . Triggered . | . . Machines | -11 -10 ---------- Run | Yrd Mat Machines Disabled . | . . Max in Single Turn . | . . Machines Repaired . | . . Machines Dismantled . | . . Machines Sabotaged . | . . Overloaded Fab Kills . | . . Hacking | -11 -10 --------- Run | Yrd Mat Machines Accessed 1 | . 1 Terminals 1 | . 1 Fabricators . | . . Repair Stations . | . . Recycling Units . | . . Scanalyzers . | . . Garrison Access . | . . Total Hacks 1 | . 1 Successful 1 | . 1 Failed . | . . Catastrophic . | . . Database Lockouts . | . . Manual . | . . Terminals 1 | . 1 Fabricators . | . . Repair Stations . | . . Recycling Units . | . . Scanalyzers . | . . Garrison Access . | . . Terminal Hacks 1 | . 1 Maintenance Status 1 | . 1 Fabricator Hacks . | . . Repair Station Hacks . | . . Recycling Unit Hacks . | . . Scanalyzer . | . . Garrison Access Hacks . | . . Unauthorized Hacks . | . . Terminals . | . . Fabricators . | . . Repair Stations . | . . Recycling Units . | . . Scanalyzers . | . . Garrison Access . | . . Data Cores Recovered . | . . Used . | . . Hacking Detections . | . . Full Trace Events . | . . Feedback Events . | . . Feedback Blocked . | . . Robot Schematics Acquired . | . . Robots Built . | . . Authchips . | . . Time . | . . Total Robot Build Rating . | . . Part Schematics Acquired . | . . Parts Built . | . . Authchips . | . . Time . | . . Total Part Build Rating . | . . Parts Repaired . | . . Time . | . . Parts Recycled . | . . Recycled Matter . | . . Retrieved Matter . | . . Retrieved Components . | . . Parts Scanalyzed . | . . Part Schematics Acquired . | . . Parts Damaged . | . . Bothacking | -11 -10 ------------ Run | Yrd Mat Used RIF Installer . | . . Robots Hacked . | . . Non-combat . | . . Combat . | . . Robot Hacks Applied . | . . Relay Couplers Released . | . . Fabnet Peak Effective % . | . . Robots Rewired . | . . Allies Hacked . | . . Hacks Repelled . | . . Allies | -11 -10 -------- Run | Yrd Mat Total Allies . | . . Largest Group . | . . Highest-Rated Group . | . . Highest-Rated Ally . | . . Total Orders . | . . Ally Attacks . | . . Total Damage . | . . Kills . | . . Allies Corrupted . | . . Allies Melted . | . . Intel | -11 -10 ------- Run | Yrd Mat Robot Analysis Total . | . . Derelict Logs Recovered . | . . Drone Launches . | . . Drone Recoveries . | . . Exploration | -11 -10 ------------- Run | Yrd Mat Turns Passed 916 | 65 851 Spaces Moved 404 | 45 359 Core 31 | 3 28 Treads . | . . Legs 373 | 42 331 Wheels . | . . Hover . | . . Flight . | . . Fastest Speed 50 | 50 120 Average Speed 125 | 115 126 Slowest Speed 250 | 120 250 Overloaded Moves . | . . Propulsion Burnouts . | . . Robots Hopped . | . . Cave-ins Triggered . | . . Exploration Rate (%) 40 | 3 77 Regions Visited 1 Branch Regions . Pre-discovered Areas . | . . Known Exits Taken . | . . Unknown Exits Taken 1 | 1 . Scrap Searched . | . . Spaces Dug 1 | . 1 Terrain Destroyed 1 | . 1 Melee 1 | . 1 Projectile . | . . AOE . | . . Terrain Rammed . | . . Walls Destroyed . | . . Machines Disabled . | . . Actions | -11 -10 --------- Run | Yrd Mat Total 710 | 56 654 Wait 229 | . 229 Move 403 | 44 359 Hop . | . . Pick Up 12 | 6 6 Fast Attach 6 | 4 2 Attach 5 | 2 3 Detach . | . . Swap 3 | . 3 Drop . | . . Fire 15 | . 15 Melee 37 | . 37 Ram . | . . Kick . | . . Crush . | . . Escape Stasis . | . . Rewire . | . . Trap . | . . Miscellaneous . | . . Route ------- -11/Scrapyard -10/Materials (discovered 4 exits: [*Mat x2] / [*Min x2]) History --------- Turn | Location | Event 4 | -11/Scrapyard | Discovered new exit (range 15) 66 | -11/Scrapyard | Entered Materials 311 | -10/Materials | Build established: Mutant 496 | -10/Materials | Discovered new exit (range 4) 512 | -10/Materials | Discovered new exit (range 9) 607 | -10/Materials | Discovered new exit (range 14) 618 | -10/Materials | Core integrity fell below 50% 641 | -10/Materials | Lost 3 parts (2n1u) 889 | -10/Materials | Core integrity fell below 20% 909 | -10/Materials | Discovered new exit (range 11) 917 | -10/Materials | Destroyed by G-47 Trooper with Backup Laser I Last Messages --------------- 00667_ Acquired Com. Wheel. 00668_ Sneak attack on R-06 Scavenger. 00668_ R-06 Scavenger destroyed. 00681_ K-01 Serf collects debris. 00689_ Acquired Aluminum Leg. 00726_ Lgt. Ion Engine destroyed. 00744_ Critical hit (Burn: +37). 00745_ G-47 Trooper destroyed. 00763_ Sneak attack on K-01 Serf. 00763_ K-01 Serf destroyed. 00766_ Acquired 14 matter. 00818_ Sneak attack on A-02 Transporter. 00818_ A-02 Transporter destroyed. 00885_ Mining Claw destroyed. 00885_ Critical hit (Burn: +37). 00895_ G-47 Trooper Particle Gun ripped off. 00909_ EXIT=FOUND 00913_ M-13 Machinist fits Backup Laser I on G-47 Trooper. 00914_ Aluminum Leg destroyed. Map ----- +----------------------------------------------------+ | #???????????????????????????????? | | ###################?????????????? | | / # ^ #?????????????? | | # # #?????????????? | | ##### # """ #?????????????? | | # """ #?????????????? | | / "" """ #?????????????? | | # "T #?????????????? | | ############# "" #?????????????? | | ????????????# #?????????????? | | ????????????#+#########?????????????? | | #####???????# #?????????????????????? | | #??????## ##????????????????????? | | ######## #####?????####???????? | | + #????? #???????? | | ######## #????? < #???????? | | ########### #????? #???????? | | ## #????# +???????? | | ## ########### #????# #???????? | | ## ########### #????# #???????? | | + ## # #????# #???????? | | +#### ## """%"" # #????# #???????? | | % ## ## """ Y" #+###### #???????? | | ! % # """%"" # """ # #???????? | | != +% # """ + +???????? | | * % # """ * !# """ #@ #???????? | | #### # """ # =# g #???????? | | ##??# # """ # # #???????? | | #???# # ! # = #g #???????? | | #???# ################# #???????? | | #???# ########????????# #???????? | | ##??# + #????????# +???????? | | #??### #????????#m # ??????? | | #????# #????????+ # ??????? | | #????# #????????? #? ?????? | | < #????# #????????? #? ?????? | | #????# #?????????t #??"????? | | ###### #????????? #???????? | | ## # #????????? #???????? | | ### + #????????? #???????? | | #?# # #????????? ????????? | | #?# # #????????????????????? | | #?# # ! #????????????????????? | | ### # #????????????????????? | | ## ########????????????????????? | | # [%* ^ ??????????????? | | # ######?????????????????????? | | # #??????????????????????????? | | # #??????????????????????????? | | # #??????????????????????????? | +----------------------------------------------------+ Best States ------------- Heat Dissipation 25 Energy Generation 10 Energy Capacity 125 Matter Stores 300 Matter Capacity 300 Sight Range 16 Robot Scan Range 14 Terrain Scan Density 10 Evasion (%) 55 Item Schematics ----------------- None Robot Schematics ------------------ None Fabricated ------------ Nothing Alien Tech Used ----------------- None Achievements -------------- None Challenges ------------ None Game ------ Seed PowerUltimateLaser Manual? 0 Play Time 00:07:56 Cumulative 20.0 hours Start 2024.11.22 @ 20:05:15 End 2024.11.22 @ 20:11:41 Sessions 1 Manual Loads 0 Difficulty Rogue Special Mode None Game No. 33 Rogue 33 Adventurer 0 Explorer 0 Win Type - Total 0 Types 0/0/0/0/0/0/0/0/0 Lore% 5 Gallery% 17 Achievement% 18 Wizard Run 0 Options --------- Layout 1 ASCII 0 Keyboard 0 Movement Mouse Keybinds 0 Fullscreen 1 Font 16/SmallcapsGlow Map View 27x19 Zoom Use 93% Tactical HUD 1 Map Filters NONE Filters NONE Steam 1 RUN: 0c650e14-a09a-46c7-8d64-08fae14ea349